fUST/lending_fUST_20250822
["ID","MTS","AMOUNT","RATE_DAILY","PERIOD"]
[380518604,1755799846843,-480.0,0.00020396,2]
[380518605,1755799846853,-480.0,0.00020396,2]
[380518606,1755799846863,-2521.08,0.00020396,2]
[380518607,1755799846872,-489.19,0.00020396,2]
[380518608,1755799846882,-2056.52,0.00020396,2]
[380518609,1755799846892,-480.0,0.00020396,2]
[380518610,1755799846901,-2811.26,0.00020396,2]
[380518611,1755799846912,-1523.71,0.00020396,2]
[380518612,1755799846922,-527.09,0.00020396,2]
[380518613,1755799846932,-480.0,0.00020396,2]
[380518614,1755799846941,-527.55,0.00020396,2]
[380518615,1755799846951,-688.66,0.00020396,2]
[380518616,1755799846961,-480.0,0.00020406,2]
[380518617,1755799846971,-480.0,0.00020406,2]
[380518618,1755799846980,-480.0,0.00020406,2]
[380518619,1755799846989,-480.0,0.00020406,2]
[380518620,1755799846999,-607.32,0.00020406,2]
[380518621,1755799847009,-480.0,0.00020406,2]
[380518622,1755799847018,-1036.55,0.00020406,2]
[380518623,1755799847028,-592.84,0.00020406,2]
[380518624,1755799847038,-480.0,0.00020406,2]
[380518625,1755799847047,-480.0,0.00020406,2]
[380518626,1755799847057,-1808.6,0.00020406,2]
[380518627,1755799847066,-480.0,0.00020406,2]
[380518628,1755799847076,-480.0,0.00020406,2]
[380518629,1755799847086,-480.0,0.00020406,2]
[380518630,1755799847096,-694.37,0.00020406,2]
[380518631,1755799847106,-1030.35,0.00020406,2]
[380518632,1755799847115,-480.0,0.00020406,2]
[380518633,1755799847125,-480.0,0.00020406,2]
[380518634,1755799847135,-480.0,0.00020406,2]
[380518635,1755799847145,-548.87,0.00020406,2]
[380518636,1755799847155,-480.0,0.00020406,2]
[380518637,1755799847164,-785.19,0.00020406,2]
[380518638,1755799847174,-595.06,0.00020406,2]
[380518639,1755799847183,-480.0,0.00020406,2]
[380518640,1755799847193,-480.0,0.00020406,2]
[380518641,1755799847203,-480.0,0.00020406,2]
[380518642,1755799847213,-480.0,0.00020406,2]
[380518643,1755799847222,-480.0,0.00020406,2]
[380518644,1755799847231,-531.25,0.00020406,2]
[380518645,1755799847241,-480.0,0.00020406,2]
[380518646,1755799847254,-480.0,0.00020406,2]
[380518647,1755799847265,-834.13,0.00020406,2]
[380518648,1755799847275,-480.0,0.00020406,2]
[380518649,1755799847284,-553.95,0.00020406,2]
[380518650,1755799847294,-480.0,0.00020406,2]
[380518651,1755799847303,-763.31,0.00020407,2]
[380518652,1755799847313,-911.61,0.00020407,2]
[380518653,1755799847323,-1963.81,0.00020407,2]
[380518654,1755799847333,-480.0,0.00020407,2]
[380518655,1755799847343,-1091.59,0.00020407,2]
[380518656,1755799847353,-480.0,0.00020407,2]
[380518657,1755799847363,-480.0,0.00020407,2]
[380518658,1755799847373,-6417.89,0.00020407,2]
[380518659,1755799847383,-718.87,0.00020407,2]
[380518660,1755799847394,-1231.56,0.00020407,2]
[380518661,1755799847406,-6003.79,0.00020407,2]
[380518662,1755799847416,-2347.87260389,0.00020411,2]
[380518663,1755799847427,-1838.96768743,0.00020455,2]
[380518664,1755799847437,-2567.89010514,0.00020466,2]
[380518665,1755799847447,-1500.0,0.00020468,2]
[380518666,1755799847457,-1500.0,0.00020468,2]
[380518667,1755799847467,-1615.03446656,0.00020468,2]
[380518668,1755799847477,-1500.0,0.00020468,2]
[380518669,1755799847487,-1500.0,0.00020468,2]
[380518670,1755799847497,-1500.0,0.00020468,2]
[380518671,1755799847507,-480.0,0.00020506,2]
[380518672,1755799847516,-480.0,0.00020506,2]
[380518673,1755799847526,-480.0,0.00020506,2]
[380518674,1755799847536,-480.0,0.00020506,2]
[380518675,1755799847546,-920.74,0.00020506,2]
[380518676,1755799847556,-963.04,0.00020506,2]
[380518677,1755799847566,-480.0,0.00020506,2]
[380518678,1755799847576,-480.0,0.00020506,2]
[380518679,1755799847586,-480.0,0.00020506,2]
[380518680,1755799847595,-480.0,0.00020506,2]
[380518681,1755799847605,-480.0,0.00020506,2]
[380518682,1755799847615,-559.19,0.00020506,2]
[380518683,1755799847624,-480.0,0.00020506,2]
[380518684,1755799847634,-992.45,0.00020506,2]
[380518685,1755799847644,-480.0,0.00020506,2]
[380518686,1755799847654,-480.0,0.00020506,2]
[380518687,1755799847664,-524.86,0.00020506,2]
[380518688,1755799847673,-497.6,0.00020506,2]
[380518689,1755799847683,-480.0,0.00020506,2]
[380518690,1755799847693,-480.0,0.00020506,2]
[380518691,1755799847703,-350.89600121,0.00020506,2]
[380518692,1755799847713,-625.39,0.00020506,2]
[380518693,1755799847723,-415.10102043,0.00020508,2]
[380518694,1755799847733,-495.48,0.00020508,2]
[380518695,1755799847743,-480.0,0.00020508,2]
[380518696,1755799847753,-480.0,0.00020508,2]
[380518697,1755799847763,-480.0,0.00020508,2]
[380518698,1755799847773,-480.0,0.00020508,2]
[380518699,1755799847782,-615.13,0.00020508,2]
[380518700,1755799847792,-513.72458944,0.00020508,2]
[380518701,1755799847802,-480.0,0.00020508,2]
[380518702,1755799847812,-480.0,0.00020508,2]
[380518703,1755799847822,-480.0,0.00020508,2]
[380518704,1755799847832,-480.0,0.00020508,2]
[380518705,1755799847841,-480.0,0.00020508,2]
[380518706,1755799847851,-480.0,0.00020508,2]
[380518707,1755799847861,-497.26,0.00020508,2]
[380518708,1755799847871,-480.0,0.00020508,2]
[380518709,1755799847880,-480.0,0.00020517,2]
[380518710,1755799847890,-480.0,0.00020517,2]
[380518711,1755799847900,-480.0,0.00020517,2]
[380518712,1755799847910,-480.0,0.00020517,2]
[380518713,1755799847920,-480.0,0.00020517,2]
[380518714,1755799847929,-194.37593972,0.00020517,2]
[380518715,1755799847940,-480.0,0.00020517,2]
[380518716,1755799847950,-480.0,0.00020517,2]
[380518717,1755799847960,-1042.81,0.00020517,2]
[380518718,1755799847970,-480.0,0.00020517,2]
[380518719,1755799847980,-480.0,0.00020517,2]
[380518720,1755799847992,-480.0,0.00020517,2]
[380518721,1755799848006,-499.87,0.00020517,2]
[380518722,1755799848017,-1000.0,0.00020521,2]
[380518723,1755799848027,-1000.0,0.00020521,2]
[380518724,1755799848038,-675.16317157,0.00020521,2]
[380518725,1755799848048,-1000.0,0.00020521,2]
[380518726,1755799848058,-501.13578343,0.00020521,2]
[380518727,1755799848069,-1000.0,0.00020521,2]
[380518728,1755799848237,-1000.0,0.00020521,2]
[380518729,1755799848248,-480.0,0.00020547,2]
[380518730,1755799848259,-499.19,0.00020547,2]
[380518731,1755799848270,-623.44,0.00020547,2]
[380518732,1755799848280,-1833.01,0.00020547,2]
[380518733,1755799848290,-480.0,0.00020547,2]
[380518734,1755799848301,-480.0,0.00020547,2]
[380518735,1755799848310,-160.0,0.00020558,2]
[380518736,1755799848320,-196.0,0.00020571,2]
[380518737,1755799848329,-480.0,0.00020617,2]
[380518738,1755799848339,-480.0,0.00020617,2]
[380518739,1755799848348,-480.0,0.00020617,2]
[380518740,1755799848357,-480.0,0.00020617,2]
[380518741,1755799848367,-480.0,0.00020617,2]
[380518742,1755799848376,-480.0,0.00020617,2]
[380518743,1755799848387,-480.0,0.00020617,2]
[380518744,1755799848401,-480.0,0.00020617,2]
[380518745,1755799848414,-480.0,0.00020617,2]
[380518746,1755799848424,-480.0,0.00020617,2]
[380518747,1755799848436,-2416.05,0.00020618,2]
[380518748,1755799848448,-480.0,0.00020618,2]
[380518749,1755799848459,-975.31,0.00020618,2]
[380518750,1755799848470,-480.0,0.00020618,2]
[380518751,1755799848482,-1231.92,0.00020618,2]
[380518752,1755799848492,-806.16,0.00020618,2]
[380518753,1755799848502,-1818.22,0.00020618,2]
[380518754,1755799848511,-480.0,0.00020618,2]
[380518755,1755799848521,-2113.4,0.00020618,2]
[380518756,1755799848530,-480.0,0.00020618,2]
[380518757,1755799848540,-480.0,0.00020619,2]
[380518758,1755799848550,-775.28,0.00020658,3]
[380518759,1755799848560,-1256.04,0.00020658,3]
[380518760,1755799848570,-628.02,0.00020658,3]
[380518761,1755799848580,-314.0,0.00020658,3]
[380518762,1755799848589,-3542.48,0.0002067,2]
[380518763,1755799848598,-753.08,0.0002067,2]
[380518764,1755799848609,-480.0,0.0002067,2]
[380518765,1755799848618,-480.0,0.0002067,2]
[380518766,1755799848627,-2521.08,0.0002067,2]
[380518767,1755799848636,-489.19,0.0002067,2]
[380518768,1755799848645,-2056.52,0.0002067,2]
[380518769,1755799848655,-2811.26,0.0002067,2]
[380518770,1755799848665,-480.0,0.0002067,2]
[380518771,1755799848674,-1523.71,0.0002067,2]
[380518772,1755799848684,-527.09,0.0002067,2]
[380518773,1755799848694,-480.0,0.0002067,2]
[380518774,1755799848703,-527.55,0.0002067,2]
[380518775,1755799848713,-688.66,0.0002067,2]
[380518776,1755799848723,-500.0,0.00020673,2]
[380518777,1755799848734,-500.0,0.00020673,2]
[380518778,1755799848744,-500.0,0.00020673,2]
[380518779,1755799848753,-500.0,0.00020673,2]
[380518780,1755799848764,-500.0,0.00020673,2]
[380518781,1755799848774,-462.85309979,0.00020673,2]
[380518782,1755799848783,-500.68861223,0.00020673,2]
[380518783,1755799848792,-500.0,0.00020673,2]
[380518784,1755799848802,-500.0,0.00020673,2]
[380518785,1755799848812,-500.0,0.00020673,2]
[380518786,1755799848822,-500.0,0.00020673,2]
[380518787,1755799848831,-500.0,0.00020673,2]
[380518788,1755799848842,-500.0,0.00020673,2]
[380518789,1755799848851,-299.74652647,0.00020673,2]
[380518790,1755799848861,-500.0,0.00020673,2]
[380518791,1755799848871,-413.03212136,0.00020673,2]
[380518792,1755799848881,-480.0,0.0002068,2]
[380518793,1755799848892,-480.0,0.0002068,2]
[380518794,1755799848902,-480.0,0.0002068,2]
[380518795,1755799848912,-480.0,0.0002068,2]
[380518796,1755799848922,-607.32,0.0002068,2]
[380518797,1755799848931,-508.59522306,0.0002068,2]
[380518798,1755799848942,-1036.55,0.0002068,2]
[380518799,1755799848953,-592.84,0.0002068,2]
[380518800,1755799848964,-480.0,0.0002068,2]
[380518801,1755799848974,-480.0,0.0002068,2]
[380518802,1755799848983,-7592.62622428,0.0002068,2]
[380518803,1755799848993,-1808.6,0.0002068,2]
[380518804,1755799849002,-480.0,0.0002068,2]
[380518805,1755799849012,-480.0,0.0002068,2]
[380518806,1755799849022,-480.0,0.0002068,2]
[380518807,1755799849032,-694.37,0.0002068,2]
[380518808,1755799849042,-1030.35,0.0002068,2]
[380518809,1755799849052,-480.0,0.0002068,2]
[380518810,1755799849062,-480.0,0.0002068,2]
[380518811,1755799849072,-480.0,0.0002068,2]
[380518812,1755799849082,-548.87,0.0002068,2]
[380518813,1755799849091,-480.0,0.0002068,2]
[380518814,1755799849101,-785.19,0.0002068,2]
[380518815,1755799849111,-595.06,0.0002068,2]
[380518816,1755799849121,-480.0,0.0002068,2]
[380518817,1755799849131,-480.0,0.0002068,2]
[380518818,1755799849141,-480.0,0.0002068,2]
[380518819,1755799849150,-480.0,0.0002068,2]
[380518820,1755799849160,-480.0,0.0002068,2]
[380518821,1755799849170,-531.25,0.0002068,2]
[380518822,1755799849179,-480.0,0.0002068,2]
[380518823,1755799849189,-480.0,0.0002068,2]
[380518824,1755799849198,-834.13,0.0002068,2]
[380518825,1755799849207,-480.0,0.0002068,2]
[380518826,1755799849216,-553.95,0.0002068,2]
[380518827,1755799849225,-480.0,0.0002068,2]
[380518828,1755799849234,-763.31,0.00020681,2]
[380518829,1755799849244,-911.61,0.00020681,2]
[380518830,1755799849253,-1963.81,0.00020681,2]
[380518831,1755799849262,-480.0,0.00020681,2]
[380518832,1755799849272,-1091.59,0.00020681,2]
[380518833,1755799849281,-480.0,0.00020681,2]
[380518834,1755799849291,-480.0,0.00020681,2]
[380518835,1755799849300,-6417.89,0.00020681,2]
[380518836,1755799849310,-718.87,0.00020681,2]
[380518837,1755799849319,-1231.56,0.00020681,2]
[380518838,1755799849328,-6003.79,0.00020681,2]
[380518839,1755799849338,-232.28399145,0.00020689,2]
[380518840,1755799849347,-160.0,0.00020689,2]
[380518841,1755799849357,-376.00439007,0.00020689,2]
[380518842,1755799849366,-215.86710461,0.00020689,2]
[380518843,1755799849375,-216.95272161,0.00020689,2]
[380518844,1755799849384,-844.19128999,0.00020689,2]
[380518845,1755799849394,-160.0,0.00020689,2]
[380518846,1755799849407,-480.0,0.0002078,2]
[380518847,1755799849416,-480.0,0.0002078,2]
[380518848,1755799849426,-480.0,0.0002078,2]
[380518849,1755799849436,-480.0,0.0002078,2]
[380518850,1755799849447,-920.74,0.0002078,2]
[380518851,1755799849458,-963.04,0.0002078,2]
[380518852,1755799849468,-480.0,0.0002078,2]
[380518853,1755799849479,-480.0,0.0002078,2]
[380518854,1755799849489,-480.0,0.0002078,2]
[380518855,1755799849498,-480.0,0.0002078,2]
[380518856,1755799849508,-480.0,0.0002078,2]
[380518857,1755799849518,-559.19,0.0002078,2]
[380518858,1755799849527,-480.0,0.0002078,2]
[380518859,1755799849536,-992.45,0.0002078,2]
[380518860,1755799849546,-480.0,0.0002078,2]
[380518861,1755799849555,-480.0,0.0002078,2]
[380518862,1755799849565,-524.86,0.0002078,2]
[380518863,1755799849575,-497.6,0.0002078,2]
[380518864,1755799849585,-480.0,0.0002078,2]
[380518865,1755799849594,-480.0,0.0002078,2]
[380518866,1755799849604,-625.39,0.0002078,2]
[380518867,1755799849613,-495.48,0.00020782,2]
[380518868,1755799849623,-480.0,0.00020782,2]
[380518869,1755799849632,-480.0,0.00020782,2]
[380518870,1755799849641,-480.0,0.00020782,2]
[380518871,1755799849651,-480.0,0.00020782,2]
[380518872,1755799849660,-615.13,0.00020782,2]
[380518873,1755799849669,-480.0,0.00020782,2]
[380518874,1755799849678,-480.0,0.00020782,2]
[380518875,1755799849689,-480.0,0.00020782,2]
[380518876,1755799849698,-480.0,0.00020782,2]
[380518877,1755799849707,-480.0,0.00020782,2]
[380518878,1755799849717,-480.0,0.00020782,2]
[380518879,1755799849727,-497.26,0.00020782,2]
[380518880,1755799849736,-480.0,0.00020782,2]
[380518881,1755799849745,-480.0,0.00020791,2]
[380518882,1755799849755,-480.0,0.00020791,2]
[380518883,1755799849764,-480.0,0.00020791,2]
[380518884,1755799849773,-480.0,0.00020791,2]
[380518885,1755799849782,-480.0,0.00020791,2]
[380518886,1755799849791,-480.0,0.00020791,2]
[380518887,1755799849801,-480.0,0.00020791,2]
[380518888,1755799849810,-1042.81,0.00020791,2]
[380518889,1755799849819,-480.0,0.00020791,2]
[380518890,1755799849828,-480.0,0.00020791,2]
[380518891,1755799849837,-480.0,0.00020791,2]
[380518892,1755799849847,-499.87,0.00020791,2]
[380518893,1755799849856,-501.66314512,0.00020821,2]
[380518894,1755799849865,-480.0,0.00020821,2]
[380518895,1755799849875,-499.19,0.00020821,2]
[380518896,1755799849883,-623.44,0.00020821,2]
[380518897,1755799849892,-1833.01,0.00020821,2]
[380518898,1755799849901,-480.0,0.00020821,2]
[380518899,1755799849911,-480.0,0.00020821,2]
[380518900,1755799849920,-168.0,0.00020822,2]
[380518901,1755799849929,-9305.13314141,0.00020835,2]
[380518902,1755799849938,-1680.0,0.0002088,2]
[380518903,1755799849947,-420.0,0.0002088,2]
[380518904,1755799849957,-420.0,0.0002088,2]
[380518905,1755799849966,-420.0,0.0002088,2]
[380518906,1755799849975,-420.0,0.0002088,2]
[380518907,1755799849985,-420.0,0.0002088,2]
[380518908,1755799849994,-196.0,0.0002089,2]
[380518909,1755799850003,-480.0,0.00020891,2]
[380518910,1755799850013,-480.0,0.00020891,2]
[380518911,1755799850022,-480.0,0.00020891,2]
[380518912,1755799850031,-480.0,0.00020891,2]
[380518913,1755799850040,-480.0,0.00020891,2]
[380518914,1755799850050,-480.0,0.00020891,2]
[380518915,1755799850059,-480.0,0.00020891,2]
[380518916,1755799850067,-480.0,0.00020891,2]
[380518917,1755799850078,-965.59582519,0.00020892,2]
[380518918,1755799850237,-440.22699263,0.00019178,2]
[380518919,1755799850345,-0.00416914,0.00019178,2]
[380518920,1755799850362,-39.76883823,0.00019178,2]
[380518921,1755799850371,-416.63116177,0.00019421,2]
[380518922,1755799850383,-63.36883823,0.00019421,2]
[380518923,1755799850392,-480.0,0.00019452,2]
[380518924,1755799850406,-28.95616177,0.00019726,2]
[380518925,1755799850417,-322.48686438,0.00019726,2]
[380518926,1755799850428,-128.55697385,0.00019726,2]
[380518927,1755799850438,-138.44302615,0.0002,2]
[380518928,1755799850755,-480.0,0.0001931,2]
[380518929,1755799850765,-480.0,0.00019421,2]
[380518930,1755799850774,-480.0,0.00019584,2]
[380518931,1755799850784,-896.47,0.00019848,2]
[380518932,1755799850793,-341.55697385,0.0002,2]
[380518933,1755799850802,-896.47,0.00020122,2]
[380518934,1755799850812,-480.0,0.00020273,2]
[380518935,1755799850822,-896.47,0.00020396,2]
[380518936,1755799850831,-480.0,0.00020547,2]
[380518937,1755799850841,-480.0,0.00020821,2]
[380518938,1755799850851,-1450.45417481,0.00020892,2]
[380518939,1755799850861,-462.02442351,0.00020892,2]
[380518940,1755799851012,-480.0,0.0001931,2]
[380518941,1755799851022,-366.62,0.00019858,2]
[380518942,1755799851031,-68.62,0.0002067,2]
[380518943,1755799851369,-827.85,0.0002067,2]
[380518944,1755799851378,-17.97557649,0.00020892,2]
[380518945,1755799851388,-975.31,0.00020892,2]
[380518946,1755799851398,-480.0,0.00020892,2]
[380518947,1755799851410,-1231.92,0.00020892,2]
[380518948,1755799851419,-806.16,0.00020892,2]
[380518949,1755799851429,-1818.22,0.00020892,2]
[380518950,1755799851437,-480.0,0.00020892,2]
[380518951,1755799851448,-2113.4,0.00020892,2]
[380518952,1755799851457,-480.0,0.00020892,2]
[380518953,1755799851466,-1037.42019117,0.000209,2]
[380518954,1755799851476,-3542.48,0.00020944,2]
[380518955,1755799851487,-753.08,0.00020944,2]
[380518956,1755799851498,-300.45999003,0.00020944,2]
[380518957,1755799851507,-480.0,0.00020944,2]
[380518958,1755799851517,-2521.08,0.00020944,2]
[380518959,1755799851527,-489.19,0.00020944,2]
[380518960,1755799851536,-2056.52,0.00020944,2]
[380518961,1755799851546,-2811.26,0.00020944,2]
[380518962,1755799851556,-480.0,0.00020944,2]
[380518963,1755799851565,-1523.71,0.00020944,2]
[380518964,1755799851575,-527.09,0.00020944,2]
[380518965,1755799851585,-480.0,0.00020944,2]
[380518966,1755799851594,-527.55,0.00020944,2]
[380518967,1755799851603,-688.66,0.00020944,2]
[380518968,1755799851613,-896.47,0.00020944,2]
[380518969,1755799851622,-480.0,0.00020954,2]
[380518970,1755799851632,-480.0,0.00020954,2]
[380518971,1755799851643,-480.0,0.00020954,2]
[380518972,1755799851652,-480.0,0.00020954,2]
[380518973,1755799851662,-607.32,0.00020954,2]
[380518974,1755799851671,-1036.55,0.00020954,2]
[380518975,1755799851681,-592.84,0.00020954,2]
[380518976,1755799851691,-480.0,0.00020954,2]
[380518977,1755799851701,-480.0,0.00020954,2]
[380518978,1755799851710,-1808.6,0.00020954,2]
[380518979,1755799851720,-428.79107867,0.00020954,2]
[380518980,1755799851730,-596.22,0.00020954,2]
[380518981,1755799851740,-480.0,0.00020954,2]
[380518982,1755799851749,-694.37,0.00020954,2]
[380518983,1755799851758,-1030.35,0.00020954,2]
[380518985,1755799851767,-480.0,0.00020954,2]
[380518987,1755799851777,-480.0,0.00020954,2]
[380518989,1755799851786,-548.87,0.00020954,2]
[380518991,1755799851794,-578.39520783,0.00020954,2]
[380518993,1755799851804,-785.19,0.00020954,2]
[380518995,1755799851813,-595.06,0.00020954,2]
[380518997,1755799851822,-480.0,0.00020954,2]
[380518999,1755799851832,-480.0,0.00020954,2]
[380519001,1755799851841,-480.0,0.00020954,2]
[380519003,1755799851851,-480.0,0.00020954,2]
[380519004,1755799851861,-480.0,0.00020954,2]
[380519005,1755799851870,-531.25,0.00020954,2]
[380519006,1755799851880,-194.79652405,0.00020954,2]
[380519007,1755799851889,-480.0,0.00020954,2]
[380519008,1755799851898,-834.13,0.00020954,2]
[380519009,1755799851908,-480.0,0.00020954,2]
[380519010,1755799851917,-553.95,0.00020954,2]
[380519011,1755799851927,-480.0,0.00020954,2]
[380519012,1755799851936,-1963.81,0.00020955,2]
[380519014,1755799852073,-1091.59,0.00020955,2]
[380519015,1755799852108,-480.0,0.00020955,2]
[380519016,1755799852117,-480.0,0.00020955,2]
[380519017,1755799852127,-6417.89,0.00020955,2]
[380519018,1755799852136,-718.87,0.00020955,2]
[380519019,1755799852146,-1231.56,0.00020955,2]
[380519020,1755799852155,-6003.79,0.00020955,2]
[380519021,1755799852164,-500.0,0.0002098,2]
[380519022,1755799852174,-1680.0,0.0002098,2]
[380519023,1755799852183,-2000.0,0.00021016,2]
[380519024,1755799852193,-2000.0,0.00021016,2]
[380519025,1755799852202,-2000.0,0.00021016,2]
[380519026,1755799852211,-1000.0,0.00021016,2]
[380519027,1755799852221,-2000.0,0.00021016,2]
[380519028,1755799852229,-168.0,0.00021039,2]
[380519029,1755799852239,-480.0,0.00021054,2]
[380519030,1755799852248,-480.0,0.00021054,2]
[380519031,1755799852258,-544.49,0.00021054,2]
[380519032,1755799852267,-480.0,0.00021054,2]
[380519033,1755799852277,-920.74,0.00021054,2]
[380519034,1755799852286,-963.04,0.00021054,2]
[380519035,1755799852296,-480.0,0.00021054,2]
[380519036,1755799852305,-480.0,0.00021054,2]
[380519037,1755799852314,-574.32,0.00021054,2]
[380519038,1755799852324,-480.0,0.00021054,2]
[380519039,1755799852333,-480.0,0.00021054,2]
[380519040,1755799852342,-559.19,0.00021054,2]
[380519041,1755799852351,-480.0,0.00021054,2]
[380519042,1755799852361,-992.45,0.00021054,2]
[380519043,1755799852370,-480.0,0.00021054,2]
[380519044,1755799852379,-480.0,0.00021054,2]
[380519045,1755799852388,-524.86,0.00021054,2]
[380519046,1755799852401,-497.6,0.00021054,2]
[380519047,1755799852410,-480.0,0.00021054,2]
[380519048,1755799852419,-625.39,0.00021054,2]
[380519049,1755799852428,-495.48,0.00021056,2]
[380519050,1755799852439,-480.0,0.00021056,2]
[380519051,1755799852447,-480.0,0.00021056,2]
[380519052,1755799852457,-480.0,0.00021056,2]
[380519053,1755799852467,-615.13,0.00021056,2]
[380519054,1755799852477,-480.0,0.00021056,2]
[380519055,1755799852487,-480.0,0.00021056,2]
[380519056,1755799852497,-480.0,0.00021056,2]
[380519057,1755799852507,-480.0,0.00021056,2]
[380519058,1755799852515,-480.0,0.00021056,2]
[380519059,1755799852525,-497.26,0.00021056,2]
[380519060,1755799852534,-480.0,0.00021056,2]
[380519061,1755799852543,-168.0,0.00021057,2]
[380519062,1755799852552,-480.0,0.00021065,2]
[380519063,1755799852562,-480.0,0.00021065,2]
[380519064,1755799852571,-480.0,0.00021065,2]
[380519065,1755799852581,-480.0,0.00021065,2]
[380519066,1755799852590,-480.0,0.00021065,2]
[380519067,1755799852599,-480.0,0.00021065,2]
[380519068,1755799852609,-1042.81,0.00021065,2]
[380519069,1755799852619,-480.0,0.00021065,2]
[380519070,1755799852629,-480.0,0.00021065,2]
[380519071,1755799852639,-480.0,0.00021065,2]
[380519072,1755799852648,-499.87,0.00021065,2]
[380519073,1755799852658,-1145.94557468,0.00021068,2]
[380519074,1755799852668,-1500.0,0.00021068,2]
[380519075,1755799852678,-1500.0,0.00021068,2]
[380519076,1755799852687,-1500.0,0.00021068,2]
[380519077,1755799852696,-1500.0,0.00021068,2]
[380519078,1755799852705,-360.0,0.00021074,2]
[380519079,1755799852714,-480.0,0.00021095,2]
[380519080,1755799852724,-499.19,0.00021095,2]
[380519081,1755799852733,-623.44,0.00021095,2]
[380519082,1755799852742,-1833.01,0.00021095,2]
[380519083,1755799852752,-480.0,0.00021095,2]
[380519084,1755799852761,-480.0,0.00021095,2]
[380519085,1755799852770,-480.0,0.00021095,2]
[380519086,1755799852780,-260.0,0.00021106,2]
[380519087,1755799852789,-600.0,0.00021142,2]
[380519088,1755799852798,-408.49513684,0.00021149,2]
[380519089,1755799852808,-4133.53961941,0.0002115,2]
[380519090,1755799852817,-480.0,0.00021165,2]
[380519091,1755799852826,-480.0,0.00021165,2]
[380519092,1755799852836,-480.0,0.00021165,2]
[380519093,1755799852845,-557.65789777,0.00021165,2]
[380519094,1755799852856,-480.0,0.00021165,2]
[380519095,1755799852865,-2416.05,0.00021166,2]
[380519096,1755799852874,-480.0,0.00021166,2]
[380519097,1755799852883,-975.31,0.00021166,2]
[380519098,1755799852893,-480.0,0.00021166,2]
[380519099,1755799852902,-778.01139645,0.00021166,2]
[380519100,1755799852915,-453.90860355,0.00021166,2]
[380519101,1755799852924,-806.16,0.00021166,2]
[380519102,1755799852934,-1818.22,0.00021166,2]
[380519103,1755799852943,-480.0,0.00021166,2]
[380519104,1755799852952,-2113.4,0.00021166,2]
[380519105,1755799852962,-480.0,0.00021166,2]
[380519106,1755799852972,-196.0,0.00021213,2]
[380519107,1755799852983,-3542.48,0.00021218,2]
[380519108,1755799852993,-753.08,0.00021218,2]
[380519109,1755799853002,-158.16,0.00021218,2]
[380519110,1755799853012,-2521.08,0.00021218,2]
[380519111,1755799853021,-489.19,0.00021218,2]
[380519112,1755799853031,-2056.52,0.00021218,2]
[380519113,1755799853040,-2811.26,0.00021218,2]
[380519114,1755799853051,-480.0,0.00021218,2]